bitfinex/quotes_SOLUSD_20241231
["timestamp","ask_amount","ask_price","bid_price","bid_amount"]
[1735626023824,7.7648,189.99,189.88,15.04313025]
[1735626023999,7.7648,189.99,189.89,15.04313025]
[1735626024200,7.7648,189.99,189.88,0.789673]
[1735626024201,20.0,189.96,189.88,15.04313025]
[1735626024415,20.0,189.96,189.86,15.04313025]
[1735626024607,20.0,189.96,189.85,15.04313025]
[1735626024814,7.7648,189.99,189.87,23.776884]
[1735626025224,20.0,189.96,189.85,15.04313025]
[1735626025423,20.0,189.96,189.84,15.83291218]
[1735626025625,1.61,189.95,189.82,15.83298508]
[1735626025929,1.61,189.95,189.83,15.04313025]
[1735626026132,1.61,189.95,189.85,23.776884]
[1735626026538,1.61,189.95,189.85,38.82001425]
[1735626026696,1.61,189.95,189.87,23.776884]
[1735626026901,1.61,189.95,189.87,38.82001425]
[1735626027333,1.61,189.95,189.89,38.82001425]
[1735626027708,7.7647,189.99,189.89,38.82001425]
[1735626027908,7.7647,189.99,189.91,23.776884]
[1735626031006,1.6099,189.99,189.91,23.776884]
[1735626033636,1.6099,189.99,189.91,38.82001425]
[1735626033839,1.6099,189.99,189.93,23.776884]
[1735626034028,1.6099,189.99,189.95,23.776884]
[1735626035319,20.0,190.02,189.95,23.776884]
[1735626037544,1.6099,190.04,189.95,38.82001425]
[1735626037749,1.6099,190.04,189.97,23.776884]
[1735626038829,1.6099,190.09,189.99,23.776884]
[1735626039813,20.0,190.07,189.99,23.776884]
[1735626040818,20.0,190.07,189.98,0.78922526]
[1735626041259,20.0,190.07,189.96,0.78922496]
[1735626041744,20.0,190.07,189.97,23.776884]
[1735626041924,20.0,190.07,189.99,23.776884]
[1735626043048,20.0,190.07,190.01,23.776884]
[1735626043737,20.0,190.07,189.98,15.83229737]
[1735626044141,20.0,190.07,189.98,0.78916712]
[1735626044840,20.0,190.07,189.98,15.83229737]
[1735626045342,20.0,190.07,189.99,23.776884]
[1735626047232,20.0,190.07,189.98,0.78916712]
[1735626048447,20.0,190.07,189.99,23.776884]
[1735626050052,20.0,190.07,189.94,15.04313025]
[1735626050345,20.0,190.07,189.94,10.39751945]
[1735626052256,20.0,190.07,189.95,23.776884]
[1735626055641,20.0,190.03,189.91,15.01278871]
[1735626055949,1.5781,190.02,189.9,0.78937721]
[1735626056549,20.0,189.98,189.9,0.78937721]
[1735626056737,20.0,189.98,189.87,15.80239049]
[1735626057139,20.0,189.98,189.86,13.1674]
[1735626057140,1.5975,189.97,189.86,13.1674]
[1735626057353,1.5975,189.97,189.86,28.18018871]
[1735626057525,1.5975,189.97,189.87,23.776884]
[1735626058247,1.5975,189.97,189.84,15.01278871]
[1735626059228,1.5975,189.97,189.85,23.776884]
[1735626059644,1.5975,189.97,189.85,24.56671131]
[1735626059825,1.5975,189.97,189.85,39.57950002]
[1735626060938,1.5975,189.97,189.89,23.776884]
[1735626061447,1.5975,189.97,189.91,23.776884]
[1735626062259,1.5975,189.97,189.88,15.01278871]
[1735626062461,1.5975,189.97,189.9,23.776884]
[1735626062835,1.5975,189.97,189.87,28.96940982]
[1735626063134,1.5975,189.97,189.88,38.78967271]
[1735626064554,1.5975,189.97,189.9,38.78967271]
[1735626064762,6.1548,190.01,189.92,38.78967271]
[1735626064958,6.1548,190.01,189.94,23.776884]
[1735626065459,6.1548,190.01,189.91,15.80230847]
[1735626065647,6.1548,190.01,189.92,15.01278871]
[1735626065847,6.1548,190.01,189.93,15.80222089]
[1735626066045,1.5975,190.02,189.94,23.776884]
[1735626067358,21.5975,190.02,189.94,38.78967271]
[1735626068340,21.5975,190.02,189.94,23.776884]
[1735626068535,21.5975,190.02,189.9,13.1648]
[1735626068536,21.5975,190.02,189.9,15.01278871]
[1735626068952,21.5975,190.02,189.91,23.776884]
[1735626069353,21.5975,190.02,189.91,15.01278871]
[1735626070556,21.5975,190.02,189.91,15.80232955]
[1735626071967,21.5975,190.02,189.93,23.776884]
[1735626072266,1.5975,190.02,189.93,33.38632905]
[1735626072438,1.5975,190.02,189.95,23.776884]
[1735626072633,21.5975,190.02,189.95,23.776884]
[1735626073037,6.1548,190.05,189.97,33.38632905]
[1735626073256,1.6476,190.07,189.99,23.776884]
[1735626075160,1.6476,190.07,189.99,46.54482905]
[1735626075463,1.6476,190.07,189.99,47.3339918]
[1735626075838,20.0,190.13,190.01,23.776884]
[1735626076169,20.0,190.13,190.01,34.17545173]
[1735626076356,20.0,190.13,190.01,24.56600668]
[1735626078080,20.0,190.13,189.99,13.1585]
[1735626078556,20.0,190.13,190.0,23.776884]
[1735626078969,20.0,190.13,190.01,23.776884]
[1735626079343,20.0,190.13,190.0,41.23481663]
[1735626079564,20.0,190.13,190.02,23.776884]
[1735626079864,20.0,190.13,190.02,24.56592439]
[1735626081765,20.0,190.13,190.02,41.23470185]
[1735626082468,1.6476,190.14,190.04,40.44566146]
[1735626082674,20.0,190.13,190.06,23.776884]
[1735626083343,1.6476,190.14,190.08,23.776884]
[1735626083642,20.0,190.13,190.08,23.776884]
[1735626085886,20.0,190.13,190.04,17.45765025]
[1735626086173,20.0,190.13,190.04,41.23453425]
[1735626086380,20.0,190.13,190.05,23.776884]
[1735626086570,20.0,190.13,190.06,0.78892656]
[1735626087362,20.0,190.13,190.07,23.776884]
[1735626087567,20.0,190.13,190.09,23.776884]
[1735626088169,1.6476,190.14,190.09,23.776884]
[1735626088490,6.1548,190.16,190.08,0.78885843]
[1735626088491,20.0,190.17,190.11,23.776884]
[1735626089179,20.0,190.17,190.08,23.776884]
[1735626090362,20.0,190.17,190.04,16.66877746]
[1735626090581,20.0,190.17,190.05,0.78897909]
[1735626090767,20.0,190.17,190.05,17.45775655]
[1735626090961,20.0,190.17,190.06,23.776884]
[1735626091272,20.0,190.17,190.06,40.44566146]
[1735626091475,20.0,190.17,190.08,23.776884]
[1735626092881,1.5286,190.19,190.09,16.66877746]
[1735626093064,1.5286,190.19,190.1,24.56569451]
[1735626095085,1.5286,190.19,190.1,23.776884]
[1735626095779,20.0,190.15,190.06,17.45752879]
[1735626096287,20.0,190.15,190.05,13.94262]
[1735626096454,20.0,190.15,190.06,10.66392187]
[1735626096658,20.0,190.15,190.08,23.776884]
[1735626096854,20.0,190.15,190.1,23.776884]
[1735626097073,20.0,190.15,190.07,10.66392187]
[1735626097586,20.0,190.15,190.08,23.776884]
[1735626098256,20.0,190.15,190.06,11.45269742]
[1735626098761,1.6419,190.14,190.02,11.45284043]
[1735626098961,1.6419,190.14,190.02,0.78891856]
[1735626099372,1.6419,190.14,190.03,23.776884]
[1735626099778,1.6419,190.14,190.02,0.78891856]
[1735626099987,1.6419,190.14,190.0,10.66392187]
[1735626100184,1.6419,190.14,190.01,10.66392187]
[1735626100373,1.6419,190.14,190.02,23.776884]
[1735626102890,6.1548,190.08,189.95,10.66392187]
[1735626103102,20.0,190.05,189.95,10.66392187]
[1735626103289,20.0,190.05,189.97,23.776884]
[1735626103605,20.0,190.05,189.99,23.776884]
[1735626104373,6.1548,190.08,189.99,23.776884]
[1735626105793,6.1548,190.08,189.95,0.78921865]
[1735626106084,1.582,190.04,189.91,0.78937875]
[1735626106289,1.582,190.04,189.91,11.45330062]
[1735626106593,1.582,190.04,189.92,23.776884]
[1735626109269,20.0,190.0,189.88,15.0168565]
[1735626109471,20.0,190.0,189.89,23.776884]
[1735626109673,20.0,190.0,189.89,24.56651633]
[1735626109891,20.0,190.0,189.89,0.78963233]
[1735626110397,20.0,190.0,189.9,23.776884]
[1735626110797,1.582,189.99,189.88,15.0168565]
[1735626111182,1.582,189.99,189.89,24.56655463]
[1735626111493,1.582,189.99,189.9,23.776884]
[1735626111874,1.582,189.99,189.89,15.80652713]
[1735626112276,1.582,189.99,189.9,15.0168565]
[1735626112501,1.582,189.99,189.92,23.776884]
[1735626112994,1.582,189.99,189.93,0.78952305]
[1735626113184,1.582,189.99,189.92,38.7937405]
[1735626113382,1.582,189.99,189.92,23.776884]
[1735626113583,1.582,189.99,189.86,6.2284]
[1735626113788,1.582,189.99,189.9,15.0168565]
[1735626114174,1.582,189.99,189.88,15.0168565]
[1735626114483,1.582,189.99,189.89,0.78967169]
[1735626114682,1.582,189.99,189.89,15.80652819]
[1735626114877,1.582,189.99,189.89,0.78967169]
[1735626115081,1.582,189.99,189.9,23.776884]
[1735626120595,1.582,189.99,189.9,38.7937405]
[1735626120976,1.582,189.99,189.9,23.776884]
[1735626121597,1.582,189.99,189.89,23.776884]
[1735626123802,1.582,189.99,189.86,15.0168565]
[1735626123989,20.0,189.95,189.86,23.776884]
[1735626124594,20.0,189.95,189.85,15.0168565]
[1735626124920,1.5604,189.94,189.83,15.8065242]
[1735626125478,1.5604,189.94,189.84,23.776884]
[1735626126703,1.5604,189.94,189.82,15.0168565]
[1735626127605,1.5604,189.94,189.78,2.44442348]
[1735626127606,1.5604,189.94,189.86,23.776884]
[1735626127791,1.5604,189.94,189.83,24.56684428]
[1735626127792,1.5604,189.94,189.88,23.776884]
[1735626127991,1.5604,189.94,189.9,23.776884]
[1735626128497,1.5604,189.94,189.9,38.7937405]
[1735626128710,6.1548,189.98,189.92,23.776884]
[1735626129505,6.1548,189.98,189.9,38.7937405]
[1735626130314,6.1548,189.98,189.9,9.61244481]
[1735626131320,6.1548,189.98,189.89,33.38932881]
[1735626132226,6.1548,189.98,189.89,38.79705847]
[1735626133911,6.1548,189.98,189.89,23.776884]
[1735626134412,6.1548,189.98,189.89,38.79705847]
[1735626134705,6.1548,189.98,189.89,23.776884]
[1735626135111,6.1548,189.98,189.89,38.79705847]
[1735626135897,1.5604,189.99,189.92,38.79705847]
[1735626136211,6.1548,190.03,189.96,23.776884]
[1735626137118,1.6356,190.04,189.96,23.776884]
[1735626139214,1.6356,190.04,189.95,23.776884]
[1735626139913,1.6356,190.04,189.93,15.02017447]
[1735626140124,1.6356,190.04,189.91,15.80960532]
[1735626141029,21.6356,190.04,189.92,23.776884]
[1735626142020,21.6356,190.04,189.9,15.02017447]
[1735626142336,21.6356,190.04,189.92,38.79705847]
[1735626143315,21.6356,190.04,189.92,23.776884]
[1735626143522,21.6356,190.04,189.9,15.02017447]
[1735626143706,21.6356,190.04,189.92,23.776884]
[1735626144023,21.6356,190.04,189.92,38.79705847]
[1735626144896,21.6356,190.04,189.92,39.58655767]
[1735626145316,21.6356,190.04,189.94,15.02017447]
[1735626145514,21.6356,190.04,189.92,0.7894992]
[1735626145515,21.6356,190.04,189.96,23.776884]
[1735626145895,21.6356,190.04,189.95,23.776884]
[1735626146507,21.6356,190.04,189.94,23.776884]
[1735626147306,21.6356,190.04,189.94,38.79705847]
[1735626147800,1.6356,190.04,189.98,23.776884]
[1735626148020,6.1548,190.07,190.0,23.776884]
[1735626148336,6.1548,190.07,190.02,23.776884]
[1735626148705,6.1548,190.07,190.0,23.776884]
[1735626149105,1.6613,190.09,190.02,23.776884]
[1735626149106,21.6613,190.09,190.02,23.776884]
[1735626149303,21.6613,190.09,190.04,23.776884]
[1735626149304,1.6613,190.09,190.04,23.776884]
[1735626153006,1.6613,190.09,190.02,23.776884]
[1735626153229,1.6613,190.09,190.02,24.56598214]
[1735626153826,1.6613,190.09,189.97,15.02017447]
[1735626154031,1.6613,190.09,189.99,23.776884]
[1735626154332,21.6613,190.09,189.95,10.67226955]
[1735626154840,21.6613,190.09,189.96,23.776884]
[1735626155029,21.6613,190.09,189.98,10.67226955]
[1735626155211,1.6613,190.09,190.02,23.776884]
[1735626155906,1.6613,190.09,190.0,10.67226955]
[1735626156111,1.6613,190.09,189.99,34.44915355]
[1735626156320,1.6613,190.09,190.01,23.776884]
[1735626156731,1.6613,190.09,189.99,40.44827354]
[1735626157631,1.6613,190.09,190.01,23.776884]
[1735626158022,6.1548,190.12,190.01,23.776884]
[1735626158325,6.1548,190.12,190.01,40.44827354]
[1735626158728,6.1548,190.12,190.01,41.23737102]
[1735626158935,1.6613,190.13,190.01,41.23737102]
[1735626159323,1.6613,190.13,190.01,24.56598148]
[1735626159922,1.6613,190.13,190.0,23.776884]
[1735626160841,1.6613,190.13,189.99,16.67138954]
[1735626161015,1.3149,190.12,189.99,16.67138954]
[1735626161439,1.3149,190.12,190.0,24.56608034]
[1735626162634,1.3149,190.12,190.0,0.78919634]
[1735626162842,1.3149,190.12,189.98,17.46061373]
[1735626164545,20.0,190.08,189.98,24.56610819]
[1735626165443,20.0,190.08,189.99,23.776884]
[1735626166526,1.5202,190.07,189.94,30.62260744]
[1735626166930,1.5202,190.07,189.95,16.67138954]
[1735626167245,1.5202,190.07,189.97,23.776884]
[1735626168746,1.5202,190.07,189.95,16.67138954]
[1735626168949,1.5202,190.07,189.95,23.776884]
[1735626170050,1.5202,190.07,189.97,23.776884]
[1735626170351,1.5202,190.07,189.95,23.776884]
[1735626170851,20.0,190.03,189.92,16.67138954]
[1735626171150,20.0,190.03,189.91,16.67138954]
[1735626171459,1.5202,190.02,189.9,16.67138954]
[1735626172450,1.5202,190.02,189.91,23.776884]
[1735626175348,1.5202,190.02,189.91,16.67138954]
[1735626177449,1.5202,190.02,189.9,16.67138954]
[1735626177638,1.5202,190.02,189.89,16.67138954]
[1735626177832,1.5202,190.02,189.89,23.776884]
[1735626178728,20.0,189.98,189.85,13.1682]
[1735626179053,1.6424,189.97,189.86,9.61379628]
[1735626179349,1.6424,189.97,189.86,23.776884]
[1735626179549,1.6424,189.97,189.86,33.39068028]
[1735626179722,1.6424,189.97,189.88,23.776884]
[1735626180871,1.6424,189.97,189.88,9.61379628]
[1735626181233,1.6424,189.97,189.9,23.776884]
[1735626182040,1.6424,189.97,189.9,33.39068028]
[1735626182335,1.6424,189.97,189.92,23.776884]
[1735626182539,1.6424,189.97,189.86,0.78956576]
[1735626182737,1.6424,189.97,189.87,9.61379628]
[1735626183131,20.0,189.92,189.79,8.18283935]
[1735626183332,20.0,189.92,189.82,9.61379628]
[1735626184040,20.0,189.92,189.84,9.61379628]
[1735626184230,20.0,189.92,189.85,23.776884]
[1735626184434,20.0,189.92,189.84,15.0290059]
[1735626184939,20.0,189.92,189.85,15.8188969]
[1735626185555,6.1548,189.95,189.85,15.0290059]
[1735626185752,6.1548,189.95,189.84,15.0290059]
[1735626185965,6.1548,189.95,189.85,15.0290059]
[1735626186480,6.1548,189.95,189.86,38.8058899]
[1735626186763,6.1548,189.95,189.85,38.8058899]
[1735626187651,6.1548,189.95,189.85,23.776884]
[1735626187837,6.1548,189.95,189.85,51.9740899]
[1735626188152,6.1548,189.95,189.86,15.0290059]
[1735626188737,6.1548,189.95,189.83,15.0290059]
[1735626189535,6.1548,189.95,189.82,28.1992059]
[1735626189871,1.6579,189.91,189.81,15.0290059]
[1735626190064,1.6579,189.91,189.8,15.0290059]
[1735626190275,1.6579,189.91,189.79,15.8189827]
[1735626190444,1.6579,189.91,189.8,23.776884]
[1735626190641,1.6579,189.91,189.79,15.0290059]
[1735626190835,1.6579,189.91,189.78,15.0290059]
[1735626190836,2.9743,189.91,189.78,15.0290059]
[1735626191036,20.0,189.87,189.78,23.776884]
[1735626191256,20.0,189.87,189.77,15.0290059]
[1735626191674,20.0,189.87,189.78,15.0290059]
[1735626191970,20.0,189.87,189.77,15.0290059]
[1735626192471,20.0,189.87,189.77,23.776884]
[1735626192772,20.0,189.87,189.76,15.0290059]
[1735626192952,1.6528,189.86,189.76,15.0290059]
[1735626194073,1.6528,189.86,189.77,23.776884]
[1735626194954,1.6528,189.86,189.77,15.0290059]
[1735626196976,1.6528,189.86,189.76,39.59610031]
[1735626197548,1.6528,189.86,189.75,15.0290059]
[1735626197751,1.6528,189.86,189.76,38.8058899]
[1735626198086,1.6528,189.86,189.77,15.0290059]
[1735626198282,1.6528,189.86,189.79,23.776884]
[1735626200781,1.6528,189.86,189.81,15.0290059]
[1735626200989,1.6528,189.86,189.82,23.776884]
[1735626201166,1.6528,189.86,189.8,15.0290059]
[1735626201376,1.6528,189.86,189.81,38.8058899]
[1735626201997,1.6528,189.86,189.8,15.0290059]
[1735626202306,1.6528,189.86,189.78,15.0290059]
[1735626203400,1.6528,189.86,189.77,15.0290059]
[1735626203566,1.6528,189.86,189.78,15.0290059]
[1735626204301,1.6528,189.86,189.78,23.776884]
[1735626204609,1.6528,189.86,189.76,15.0290059]
[1735626205097,1.6528,189.86,189.77,23.776884]
[1735626205674,1.6528,189.86,189.75,15.0290059]
[1735626206400,1.6528,189.86,189.75,9.62812247]
[1735626207100,1.6528,189.86,189.74,23.776884]
[1735626207101,20.0,189.82,189.74,9.62812247]
[1735626207579,20.0,189.82,189.76,9.62812247]
[1735626208303,20.0,189.82,189.76,15.04392519]
[1735626209007,20.0,189.82,189.73,15.04392519]
[1735626209302,1.6357,189.81,189.72,15.04392519]
[1735626210100,1.6357,189.81,189.71,15.04392519]
[1735626210405,1.6357,189.81,189.72,15.04392519]
[1735626210610,20.0,189.77,189.7,15.04392519]
[1735626212215,20.0,189.77,189.69,15.04392519]
[1735626212518,1.6357,189.76,189.66,15.04392519]
[1735626212815,20.0,189.72,189.65,15.04392519]
[1735626213630,20.0,189.72,189.67,15.04392519]
[1735626213822,20.0,189.72,189.65,15.04392519]
[1735626214123,20.0,189.72,189.69,38.82080919]
[1735626214288,20.0,189.72,189.7,15.04392519]
[1735626214497,20.0,189.72,189.67,15.04392519]
[1735626215112,20.0,189.72,189.69,15.04392519]
[1735626215937,20.0,189.72,189.67,15.04392519]
[1735626216530,1.6357,189.71,189.65,15.04392519]
[1735626216718,1.6357,189.71,189.64,15.04392519]
[1735626217812,1.6357,189.71,189.58,23.776884]
[1735626218140,1.6357,189.71,189.64,15.04392519]
[1735626219627,1.6357,189.71,189.66,15.04392519]
[1735626228233,1.6357,189.71,189.66,9.64081898]
[1735626228642,1.6357,189.71,189.69,9.64081898]
[1735626228854,1.6357,189.71,189.63,38.56327592]
[1735626228855,26.0047,189.75,189.7,9.64081898]
[1735626229020,26.0047,189.75,189.73,9.64081898]
[1735626229222,6.0047,189.75,189.73,9.64081898]
[1735626230047,21.5756,189.76,189.73,9.64081898]
[1735626230344,21.5756,189.76,189.75,9.64081898]
[1735626230345,1.5756,189.76,189.75,9.64081898]
[1735626230756,1.5756,189.76,189.74,9.64081898]
[1735626231122,21.5756,189.76,189.75,9.64081898]
[1735626231735,21.5756,189.76,189.74,9.64081898]
[1735626231943,21.5756,189.76,189.75,9.64081898]
[1735626232125,21.5756,189.76,189.74,9.64081898]
[1735626232843,21.5756,189.76,189.61,13.97540947]
[1735626233153,21.5756,189.76,189.73,9.64081898]
[1735626233321,21.5756,189.76,189.72,9.64081898]
[1735626234546,21.5756,189.76,189.71,9.64081898]
[1735626235454,21.5756,189.76,189.72,9.64081898]
[1735626237276,21.5756,189.76,189.71,9.64081898]
[1735626240391,21.5756,189.76,189.72,9.64081898]
[1735626240962,21.5756,189.76,189.73,9.64081898]
[1735626241159,21.5756,189.76,189.74,9.64081898]
[1735626242270,20.0,189.8,189.74,9.64081898]
[1735626243282,20.0,189.8,189.72,9.64081898]
[1735626243573,20.0,189.8,189.73,9.64081898]
[1735626244073,20.0,189.8,189.72,9.64081898]
[1735626244074,21.3171,189.8,189.72,9.64081898]
[1735626246086,21.3171,189.8,189.63,40.16777592]
[1735626246257,26.0208,189.76,189.67,9.64081898]
[1735626246457,26.0208,189.76,189.63,1.6045]
[1735626246769,1.6467,189.75,189.65,9.64081898]
[1735626247284,1.6467,189.75,189.66,9.64081898]
[1735626250178,1.6467,189.75,189.59,23.776884]
[1735626250179,1.6467,189.75,189.67,9.64081898]
[1735626250357,1.6467,189.75,189.68,9.64081898]
[1735626252175,1.6467,189.75,189.67,9.64081898]
[1735626252879,1.6467,189.75,189.66,9.64081898]
[1735626253181,1.6467,189.75,189.65,9.64081898]
[1735626254085,1.6467,189.75,189.66,9.64081898]
[1735626254258,1.6467,189.75,189.67,9.64081898]
[1735626255391,1.6467,189.75,189.68,9.64081898]
[1735626255989,1.6467,189.75,189.69,9.64081898]
[1735626256170,1.6467,189.75,189.72,9.64081898]
[1735626256555,7.7848,189.8,189.74,9.64081898]
[1735626256891,7.7848,189.8,189.73,9.64081898]
[1735626257185,20.0,189.77,189.74,9.64081898]
[1735626257380,1.63,189.8,189.76,9.64081898]
[1735626257684,1.63,189.8,189.77,9.64081898]
[1735626258252,20.0,189.82,189.67,0.79061979]
[1735626258561,20.0,189.82,189.73,15.04934013]
[1735626258890,1.63,189.8,189.71,15.04934013]
[1735626260985,1.63,189.8,189.72,15.04934013]
[1735626261590,21.63,189.8,189.73,15.04934013]
[1735626261778,1.63,189.8,189.76,15.04934013]
[1735626262788,9.52889243,189.84,189.78,15.04934013]
[1735626262789,1.63,189.84,189.78,15.04934013]
[1735626262971,20.0,189.82,189.78,15.04934013]
[1735626263587,20.0,189.82,189.77,15.04934013]
[1735626263755,20.0,189.82,189.78,15.04934013]
[1735626265260,20.0,189.82,189.77,15.04934013]
[1735626265458,20.0,189.82,189.76,15.04934013]
[1735626265680,20.0,189.82,189.71,6.4481]
[1735626265895,20.0,189.82,189.76,15.04934013]
[1735626270988,20.0,189.82,189.77,15.04934013]
[1735626272988,20.0,189.82,189.76,15.04934013]
[1735626273495,20.0,189.82,189.75,15.04934013]
[1735626274096,20.0,189.82,189.76,15.04934013]
[1735626274403,20.0,189.82,189.77,15.04934013]
[1735626275393,20.0,189.82,189.78,15.04934013]
[1735626277190,1.63,189.84,189.72,15.04934013]
[1735626277508,3.96667049,189.87,189.81,15.04934013]
[1735626277696,20.0,189.85,189.81,15.04934013]
[1735626277870,1.6569,189.88,189.81,15.04934013]
[1735626278391,20.0,189.87,189.81,15.04934013]
[1735626278897,1.6569,189.88,189.82,15.04934013]
[1735626279072,1.6569,189.88,189.84,15.04934013]
[1735626279498,20.0,189.91,189.84,15.04934013]
[1735626279887,20.0,189.91,189.86,15.04934013]
[1735626280197,20.0,189.91,189.85,15.04934013]
[1735626280499,20.0,189.91,189.84,9.62164465]
[1735626281190,20.0,189.91,189.83,9.62164465]
[1735626282887,20.0,189.91,189.82,9.62164465]
[1735626283075,20.0,189.91,189.81,9.62164465]
[1735626283275,20.0,189.91,189.82,9.62164465]
[1735626284106,20.0,189.87,189.76,1.5332]
[1735626284402,20.0,189.87,189.78,9.62164465]
[1735626285578,1.3167,189.86,189.78,9.62164465]
[1735626285992,1.5892,189.82,189.73,9.62164465]
[1735626286308,1.5892,189.82,189.72,9.62164465]
[1735626287111,1.3171,189.81,189.72,9.62164465]
[1735626287318,1.3171,189.81,189.68,6.329]
[1735626287507,1.3171,189.81,189.7,9.62164465]
[1735626287700,20.0,189.76,189.69,9.62164465]
[1735626287884,20.0,189.76,189.68,9.62164465]
[1735626288993,1.6191,189.75,189.63,6.3475]
[1735626289188,1.6191,189.75,189.66,9.62164465]
[1735626289588,1.6191,189.75,189.67,9.62164465]
[1735626289988,1.6191,189.75,189.68,9.62164465]
[1735626290195,1.6191,189.75,189.68,15.06091636]
[1735626290713,1.6191,189.75,189.67,15.06091636]
[1735626290920,1.6191,189.75,189.68,15.06091636]
[1735626291905,1.6191,189.75,189.66,15.06091636]
[1735626293581,1.6191,189.75,189.67,15.06091636]
[1735626294492,1.3175,189.74,189.65,15.06091636]
[1735626295319,1.3175,189.74,189.63,15.06091636]
[1735626295620,20.0,189.7,189.62,15.06091636]
[1735626295800,26.1541,189.7,189.62,15.06091636]
[1735626296796,27.472,189.7,189.62,15.06091636]
[1735626298109,27.472,189.7,189.61,15.06091636]
[1735626298923,27.472,189.7,189.62,15.06091636]
[1735626299129,27.472,189.7,189.63,15.06091636]
[1735626299423,27.472,189.7,189.62,15.06091636]
[1735626300627,27.472,189.7,189.61,15.06091636]
[1735626300799,27.472,189.7,189.62,15.06091636]
[1735626301624,27.472,189.7,189.61,15.06091636]
[1735626302410,27.472,189.7,189.6,15.06091636]
[1735626302598,1.6409,189.69,189.6,15.06091636]
[1735626303424,1.6409,189.69,189.59,15.06091636]
[1735626303629,1.318,189.68,189.58,15.06091636]
[1735626304829,1.318,189.68,189.59,15.06091636]
[1735626305421,1.318,189.68,189.6,15.06091636]
[1735626306527,1.318,189.68,189.59,15.06091636]
[1735626306823,1.318,189.68,189.6,15.06091636]
[1735626307429,1.6409,189.74,189.66,15.06091636]
[1735626307617,1.6409,189.74,189.65,15.06091636]
[1735626307815,1.6409,189.74,189.64,15.06091636]
[1735626308225,20.0,189.72,189.64,15.06091636]
[1735626308409,2.9584,189.74,189.65,15.06091636]
[1735626309326,1.6409,189.74,189.68,15.06091636]
[1735626309533,20.0,189.72,189.67,15.06091636]
[1735626309894,20.0,189.72,189.64,15.06091636]
[1735626310100,20.0,189.72,189.62,15.06091636]
[1735626310602,20.0,189.72,189.61,15.06091636]
[1735626311640,21.3178,189.71,189.6,15.06091636]
[1735626312937,1.6111,189.66,189.58,15.06091636]
[1735626313641,1.6111,189.66,189.57,15.06091636]
[1735626313942,1.6111,189.66,189.56,15.06091636]
[1735626314312,1.6111,189.66,189.55,15.06091636]
[1735626315149,1.3182,189.65,189.55,15.06091636]
[1735626316026,1.3182,189.65,189.54,15.06091636]
[1735626316412,20.0,189.63,189.54,15.06091636]
[1735626317233,20.0,189.64,189.54,15.06091636]
[1735626317440,20.0,189.63,189.54,15.06091636]
[1735626318336,20.0,189.63,189.55,15.06091636]
[1735626318713,1.3184,189.62,189.57,15.06091636]
[1735626318909,1.3184,189.62,189.56,15.06091636]
[1735626320816,1.3184,189.62,189.54,15.06091636]
[1735626321030,1.3184,189.62,189.53,15.06091636]
[1735626323414,1.3184,189.62,189.54,15.06091636]
[1735626324045,3.9552,189.62,189.54,15.06091636]
[1735626324241,3.9552,189.62,189.53,9.65592194]
[1735626328346,3.9552,189.62,189.54,9.65592194]
[1735626328550,1.3184,189.62,189.56,9.65592194]
[1735626328851,1.3184,189.62,189.58,9.65592194]
[1735626329040,1.6111,189.66,189.61,9.65592194]
[1735626329242,1.6111,189.66,189.63,9.65592194]
[1735626329433,1.6111,189.66,189.64,9.65592194]
[1735626329747,1.318,189.68,189.65,9.65592194]
[1735626331657,2.8815,189.71,189.65,9.65592194]
[1735626331841,2.8815,189.71,189.66,9.65592194]
[1735626332042,20.0,189.69,189.66,9.65592194]
[1735626332244,20.0,189.69,189.66,15.06601268]